bitfinex-derivatives/quotes_BTCF0:USTF0_20250812
["timestamp","ask_amount","ask_price","bid_price","bid_amount"]
[1755003211007,0.1039085,119150.0,119140.0,0.2159596]
[1755003211812,0.1039085,119150.0,119140.0,0.68682212]
[1755003211813,0.001,119150.0,119140.0,0.68682212]
[1755003212317,0.32746283,119170.0,119160.0,0.0839253]
[1755003212514,0.10261743,119170.0,119160.0,0.2120153]
[1755003212706,0.17862743,119170.0,119160.0,0.2120153]
[1755003212912,0.67768995,119170.0,119160.0,0.2120153]
[1755003213216,0.67768995,119170.0,119160.0,0.04509]
[1755003213417,0.67768995,119170.0,119160.0,0.01116]
[1755003213813,0.67768995,119170.0,119160.0,0.1292655]
[1755003214114,0.67768995,119170.0,119160.0,0.2120155]
[1755003214321,0.67868995,119170.0,119160.0,0.2120155]
[1755003214817,0.20782743,119170.0,119160.0,0.2120155]
[1755003215012,0.16803743,119170.0,119160.0,0.2120155]
[1755003215221,0.10361743,119170.0,119160.0,0.2120155]
[1755003215416,0.01969903,119170.0,119160.0,0.68287802]
[1755003215715,0.02169903,119170.0,119160.0,0.2120155]
[1755003215915,0.10561743,119170.0,119160.0,0.2120155]
[1755003216113,0.02169903,119170.0,119160.0,0.68287802]
[1755003216520,0.10561743,119170.0,119160.0,0.2120155]
[1755003217107,0.10461743,119170.0,119160.0,0.2120155]
[1755003217414,0.10261743,119170.0,119160.0,0.2120155]
[1755003219825,0.16238743,119170.0,119160.0,0.2120155]
[1755003220214,0.16238743,119170.0,119160.0,0.21206233]
[1755003220715,0.12828743,119170.0,119160.0,0.21206233]
[1755003220916,0.10261743,119170.0,119160.0,0.21206233]
[1755003221116,0.10261743,119170.0,119160.0,0.68292485]
[1755003221922,0.10261743,119170.0,119160.0,0.21206233]
[1755003222316,0.20113743,119170.0,119160.0,0.21206233]
[1755003222521,0.20661743,119170.0,119160.0,0.21206233]
[1755003222711,0.67747995,119170.0,119160.0,0.09513233]
[1755003222914,0.67747995,119170.0,119160.0,0.14651233]
[1755003223112,0.20661743,119170.0,119160.0,0.21206233]
[1755003223319,1.62171995,119170.0,119160.0,4.683e-05]
[1755003224124,1.62271995,119170.0,119160.0,4.683e-05]
[1755003224524,1.62471995,119170.0,119160.0,4.683e-05]
[1755003224717,1.55575562,119170.0,119160.0,4.683e-05]
[1755003225125,1.1351584,119170.0,119160.0,4.683e-05]
[1755003225326,1.53705659,119170.0,119160.0,4.683e-05]
[1755003226615,1.60615744,119170.0,119160.0,4.683e-05]
[1755003226820,1.68615744,119170.0,119160.0,4.683e-05]
[1755003227014,1.2151584,119170.0,119160.0,4.683e-05]
[1755003227225,1.68615744,119170.0,119160.0,4.683e-05]
[1755003228525,1.68615744,119170.0,119140.0,0.083936]
[1755003228526,0.0839325,119150.0,119140.0,0.083936]
[1755003228720,1.60277154,119150.0,119140.0,0.083936]
[1755003228927,1.1317725,119150.0,119140.0,0.112296]
[1755003229126,1.60277154,119150.0,119140.0,0.112296]
[1755003230418,1.60277154,119150.0,119140.0,0.084936]
[1755003230820,1.60277154,119150.0,119140.0,0.213026]
[1755003231020,1.1317725,119150.0,119140.0,0.214026]
[1755003231424,0.10189,119150.0,119140.0,0.68502504]
[1755003231725,0.1824524,119150.0,119140.0,0.213026]
[1755003231930,0.1834524,119150.0,119140.0,0.212026]
[1755003232117,0.01824,119150.0,119140.0,0.68302504]
[1755003232321,0.002,119150.0,119140.0,0.68302504]
[1755003232620,0.0859324,119150.0,119140.0,0.68302504]
[1755003232926,0.1844524,119150.0,119140.0,0.212026]
[1755003233528,0.66093144,119150.0,119140.0,0.185916]
[1755003233827,0.65993144,119150.0,119140.0,0.186916]
[1755003234021,0.1889324,119150.0,119140.0,0.213026]
[1755003234326,0.03875,119150.0,119140.0,0.213026]
[1755003234528,0.01624,119150.0,119140.0,0.214026]
[1755003234720,0.3115591,119160.0,119150.0,0.0839324]
[1755003234920,0.3503091,119160.0,119150.0,0.1345324]
[1755003235122,0.82678814,119160.0,119150.0,0.1118224]
[1755003235321,0.82678814,119160.0,119150.0,0.1290224]
[1755003235625,0.82678814,119160.0,119150.0,0.1122924]
[1755003236125,0.82678814,119160.0,119150.0,0.0950924]
[1755003237628,0.82678814,119160.0,119150.0,0.0839324]
[1755003238827,0.3557891,119160.0,119150.0,0.2120224]
[1755003239025,0.1008789,119180.0,119150.0,0.2120224]
[1755003239026,0.2687146,119180.0,119170.0,0.0839183]
[1755003239220,0.4511527,119180.0,119170.0,0.2120083]
[1755003239422,0.4566327,119180.0,119170.0,0.2120083]
[1755003239727,0.4566327,119180.0,119170.0,0.1858983]
[1755003239929,0.92763174,119180.0,119170.0,0.1858983]
[1755003240535,0.84371364,119180.0,119170.0,0.1858983]
[1755003240922,0.3757146,119180.0,119170.0,0.2120083]
[1755003241230,0.3797146,119180.0,119170.0,0.2120083]
[1755003241830,0.3797146,119180.0,119170.0,0.1858983]
[1755003242032,0.85071364,119180.0,119170.0,0.1858983]
[1755003242332,0.85071364,119180.0,119170.0,0.0839183]
[1755003242632,0.0839183,119170.0,119160.0,0.4131063]
[1755003242828,0.1855283,119170.0,119160.0,0.4611163]
[1755003243327,0.1223883,119170.0,119160.0,0.4611163]
[1755003243525,0.1223883,119170.0,119160.0,0.93211534]
[1755003243726,0.03847,119170.0,119160.0,0.93211534]
[1755003244234,0.1253883,119170.0,119160.0,0.93211534]
[1755003244536,0.1844783,119170.0,119160.0,0.4611163]
[1755003245839,0.65952734,119170.0,119160.0,0.3771909]
[1755003246027,0.65952734,119170.0,119160.0,0.3514709]
[1755003246227,0.65952734,119170.0,119160.0,0.2786909]
[1755003246526,0.1885283,119170.0,119160.0,0.3771909]
[1755003247432,1.69152734,119170.0,119160.0,0.01108]
[1755003247631,0.0839247,119160.0,119150.0,0.1356297]
[1755003247835,0.65653374,119160.0,119150.0,0.0839297]
[1755003249128,0.1855347,119160.0,119150.0,0.0839297]
[1755003249429,0.1855347,119160.0,119150.0,0.2093597]
[1755003251438,0.1814847,119160.0,119150.0,0.68035874]
[1755003251738,0.1010247,119160.0,119150.0,0.68035874]
[1755003252134,0.3713481,119170.0,119150.0,0.84821634]
[1755003252337,0.3947781,119170.0,119160.0,0.1613448]
[1755003252534,0.4372981,119170.0,119160.0,0.2093548]
[1755003253140,0.90829714,119170.0,119160.0,0.2093548]
[1755003253335,0.4372981,119170.0,119160.0,0.2093548]
[1755003253526,0.4372981,119170.0,119160.0,0.1836348]
[1755003253732,0.90829714,119170.0,119160.0,0.0839248]
[1755003254342,0.0839248,119160.0,119150.0,0.3874176]
[1755003254536,0.65653384,119160.0,119150.0,0.167857]
[1755003254836,0.0839319,119150.0,119140.0,0.3292346]
[1755003255041,0.1855419,119150.0,119140.0,0.3772446]
[1755003257130,0.0839319,119150.0,119140.0,0.3772446]
[1755003257435,0.1089219,119150.0,119140.0,0.84824364]
[1755003257642,0.1814919,119150.0,119140.0,0.3600946]
[1755003257842,0.1855419,119150.0,119140.0,0.3772446]
[1755003258744,0.1855419,119150.0,119140.0,0.3792446]
[1755003259245,0.1855419,119150.0,119140.0,0.3782446]
[1755003260335,0.1855419,119150.0,119140.0,0.3772446]
[1755003260541,0.1224019,119150.0,119140.0,0.84824364]
[1755003260744,0.0839319,119150.0,119140.0,0.84824364]
[1755003260942,0.1678557,119160.0,119150.0,0.0839318]
[1755003261149,0.1678557,119160.0,119150.0,0.68036084]
[1755003261351,0.3108541,119170.0,119160.0,0.0839249]
[1755003261540,0.3493241,119170.0,119160.0,0.2093549]
[1755003261947,0.3508841,119170.0,119160.0,0.2093549]
[1755003262150,0.1678408,119170.0,119160.0,0.68035394]
[1755003262649,0.1698408,119170.0,119160.0,0.68035394]
[1755003262844,0.002,119170.0,119160.0,0.68035394]
[1755003264749,0.002,119170.0,119160.0,1.78790594]
[1755003265044,1.810814,119190.0,119180.0,0.0839108]
[1755003265253,1.810814,119190.0,119180.0,0.2093408]
[1755003266037,1.814374,119190.0,119180.0,0.2093408]
[1755003266242,1.814374,119190.0,119180.0,0.21355198]
[1755003266450,1.816374,119190.0,119180.0,0.21355198]
[1755003267550,1.817374,119190.0,119180.0,0.2093408]
[1755003269348,1.813814,119190.0,119180.0,0.2093408]
[1755003269852,1.813814,119190.0,119180.0,0.21361201]
[1755003270452,1.817374,119190.0,119180.0,0.21361201]
[1755003274658,2.755254,119190.0,119180.0,0.21361201]
[1755003275659,3.22625304,119190.0,119180.0,0.08818201]
[1755003275855,3.22625304,119190.0,119180.0,0.0839108]
[1755003276057,0.0839106,119180.0,119170.0,0.3356568]
[1755003276255,0.1892106,119180.0,119170.0,0.35071862]
[1755003276456,0.1892106,119180.0,119170.0,0.46452862]
[1755003276653,0.1892106,119180.0,119170.0,0.38453862]
[1755003276850,0.59092509,119180.0,119170.0,0.00421182]
[1755003277056,0.0839177,119170.0,119160.0,0.3356892]
[1755003277254,1.1265777,119170.0,119160.0,0.3975992]
[1755003277454,1.1265777,119170.0,119160.0,0.4603492]
[1755003278157,1.1265777,119170.0,119160.0,0.86206369]
[1755003278354,1.1265777,119170.0,119160.0,0.86306369]
[1755003278552,0.1892177,119170.0,119160.0,0.86933594]
[1755003278856,0.1815577,119170.0,119160.0,0.93834691]
[1755003279862,0.1815577,119170.0,119160.0,0.46762145]
[1755003280161,0.1228977,119170.0,119160.0,0.93834691]
[1755003280658,0.1815577,119170.0,119160.0,0.93834691]
[1755003281463,0.1845077,119170.0,119160.0,0.93834691]
[1755003282563,0.1845077,119170.0,119160.0,0.46762145]
[1755003282764,0.1892177,119170.0,119160.0,0.46762145]
[1755003284458,0.1892177,119170.0,119160.0,0.46562145]
[1755003284759,0.1892177,119170.0,119160.0,0.46762145]
[1755003285162,0.1892177,119170.0,119160.0,0.46562145]
[1755003285357,0.1892177,119170.0,119160.0,0.46662145]
[1755003286262,0.1892177,119170.0,119160.0,0.46562145]
[1755003288063,0.1845077,119170.0,119160.0,0.46562145]
[1755003290768,0.1892177,119170.0,119160.0,0.46562145]
[1755003291567,0.65994316,119170.0,119160.0,0.32296785]
[1755003291760,0.65994316,119170.0,119160.0,0.26788785]
[1755003291966,0.1892177,119170.0,119160.0,0.38169785]
[1755003295175,0.1228977,119170.0,119160.0,0.38169785]
[1755003295476,0.1845077,119170.0,119160.0,0.38169785]
[1755003295677,0.1892177,119170.0,119160.0,0.38169785]
[1755003296572,0.1228976,119170.0,119160.0,0.85242331]
[1755003296778,0.1470776,119170.0,119160.0,0.85242331]
[1755003296977,0.1815576,119170.0,119160.0,0.38169785]
[1755003297173,0.1892176,119170.0,119160.0,0.38169785]
[1755003297980,0.65994306,119170.0,119160.0,0.3774256]
[1755003298174,0.65994306,119170.0,119160.0,0.3016856]
[1755003298374,0.65994306,119170.0,119160.0,0.3186956]
[1755003298676,0.59104157,119170.0,119160.0,0.3186956]
[1755003298879,0.59104157,119170.0,119160.0,0.3774256]
[1755003299381,0.335661,119180.0,119170.0,0.0839176]
[1755003299572,0.436251,119180.0,119170.0,0.61040157]
[1755003299772,0.03898,119180.0,119170.0,0.61040157]
[1755003300478,0.01599,119180.0,119170.0,0.61040157]
[1755003300876,0.1009005,119180.0,119170.0,0.61040157]
[1755003301076,0.1009005,119180.0,119170.0,0.2085776]
[1755003301281,0.1019005,119180.0,119170.0,0.2085776]
[1755003301470,0.1260805,119180.0,119170.0,0.2085776]
[1755003301676,0.1835505,119180.0,119170.0,0.2085776]
[1755003302278,0.1815505,119180.0,119170.0,0.2085776]
[1755003302487,0.1815505,119180.0,119170.0,0.61140157]
[1755003305174,0.1815505,119180.0,119170.0,0.2095776]
[1755003307277,0.0839105,119180.0,119170.0,0.61140157]
[1755003307982,0.0839105,119180.0,119170.0,0.2095776]
[1755003308188,0.0839105,119180.0,119170.0,0.61140157]
[1755003308770,0.1403905,119180.0,119170.0,0.61140157]
[1755003309281,0.05648,119180.0,119170.0,0.61140157]
[1755003309780,0.02383,119180.0,119170.0,0.61140157]
[1755003310483,1.583904,119190.0,119180.0,0.0839105]
[1755003310677,1.640384,119190.0,119180.0,0.2081205]
[1755003311278,1.642724,119190.0,119180.0,0.2081205]
[1755003311674,2.04454797,119190.0,119180.0,0.2081205]
[1755003311870,2.04554797,119190.0,119180.0,0.2081205]
[1755003312581,1.644724,119190.0,119180.0,0.2081205]
[1755003313091,0.002,119190.0,119180.0,1.54010447]
[1755003313274,0.71232227,119210.0,119200.0,0.0838964]
[1755003313474,0.73021227,119210.0,119200.0,0.1857164]
[1755003313884,0.75404227,119210.0,119200.0,0.1857164]
[1755003314585,0.75404227,119210.0,119200.0,0.2081064]
[1755003314776,0.76304227,119210.0,119200.0,0.2081064]
[1755003315279,0.3612183,119210.0,119200.0,0.2081064]
[1755003315588,0.3612183,119210.0,119200.0,0.60993037]
[1755003316082,0.3612183,119210.0,119200.0,0.2081064]
[1755003316584,0.76304227,119210.0,119200.0,0.2081064]
[1755003317484,0.3612183,119210.0,119200.0,0.2081064]
[1755003317784,0.76304227,119210.0,119200.0,0.2081064]
[1755003318682,0.3612183,119210.0,119200.0,0.60993037]
[1755003318882,0.3612183,119210.0,119200.0,0.2081064]
[1755003319084,0.2773233,119210.0,119200.0,0.2081064]
[1755003319276,0.04698,119210.0,119200.0,1.01175434]
[1755003319477,0.009,119210.0,119200.0,1.94035434]
[1755003319984,0.009,119210.0,119200.0,1.53853037]
[1755003320172,0.009,119210.0,119200.0,1.94035434]
[1755003320376,0.009,119210.0,119200.0,1.1367064]
[1755003320575,1.19891495,119240.0,119230.0,0.0838753]
[1755003320777,1.60073892,119240.0,119230.0,0.2080853]
[1755003321186,0.32699495,119240.0,119230.0,0.21324615]
[1755003321484,0.77016892,119240.0,119230.0,0.21324615]
[1755003321882,0.38234495,119240.0,119230.0,0.21324615]
[1755003322088,0.78416892,119240.0,119230.0,0.21324615]
[1755003322387,0.79416892,119240.0,119230.0,0.21324615]
[1755003322590,0.21459635,119240.0,119230.0,0.21324615]
[1755003323890,0.11393,119240.0,119230.0,0.61507012]
[1755003324080,1.514,119240.0,119230.0,0.61507012]
[1755003324280,0.05858,119260.0,119250.0,0.0838613]
[1755003324483,0.03798,119260.0,119250.0,0.60989527]
[1755003324688,1.53798,119260.0,119250.0,0.60989527]
[1755003324889,1.59446,119260.0,119250.0,0.60989527]
[1755003325785,0.0001,119280.0,119270.0,0.0838472]
[1755003325984,0.48335397,119280.0,119270.0,0.2080572]
[1755003326189,0.58323417,119280.0,119270.0,0.2080572]
[1755003326391,0.1814102,119280.0,119270.0,0.2080572]
[1755003326583,0.58323417,119280.0,119270.0,0.2080572]
[1755003326784,0.1814102,119280.0,119270.0,0.2080572]
[1755003327389,1.1084902,119280.0,119270.0,0.2080572]
[1755003327590,1.1084902,119280.0,119270.0,0.0838472]
[1755003327785,1.60233713,119280.0,119270.0,0.1124072]
[1755003327990,1.04848,119280.0,119270.0,0.2130572]
[1755003328191,0.09757,119280.0,119270.0,0.2130572]
[1755003328402,0.1814102,119280.0,119270.0,0.2130572]
[1755003328898,0.2052402,119280.0,119270.0,0.2130572]
[1755003329092,0.67525713,119280.0,119270.0,0.2150572]
[1755003329293,0.67525713,119280.0,119270.0,0.1144072]
[1755003329490,0.67525713,119280.0,119270.0,0.0908472]
[1755003330193,0.2052402,119280.0,119270.0,0.0908472]
[1755003330389,0.67525713,119280.0,119270.0,0.007]
[1755003330590,0.74119274,119280.0,119270.0,0.007]
[1755003330900,0.84119274,119280.0,119270.0,0.007]
[1755003331595,0.0838613,119250.0,119240.0,0.4110295]
[1755003331797,0.67160823,119250.0,119240.0,0.4110295]
[1755003332190,0.2015913,119250.0,119240.0,0.4215695]
[1755003332690,0.2861128,119280.0,119270.0,0.0838472]
[1755003332891,0.0838472,119270.0,119260.0,0.3032124]
[1755003333099,1.41957693,119280.0,119270.0,0.0838472]
[1755003333398,0.02396,119280.0,119270.0,0.1831272]
[1755003333700,0.03458,119280.0,119270.0,0.2071972]
[1755003333995,0.67295713,119280.0,119270.0,0.0838472]
[1755003334394,0.67395713,119280.0,119270.0,0.1079172]
[1755003334791,0.2039402,119280.0,119270.0,0.0838472]
[1755003334991,0.67395713,119280.0,119270.0,0.0838472]
[1755003335501,0.67495713,119280.0,119270.0,0.0838472]
[1755003335701,0.2049402,119280.0,119270.0,0.0838472]
[1755003335902,0.2049402,119280.0,119270.0,0.2071972]
[1755003336492,0.2049402,119280.0,119260.0,0.2515524]
[1755003336493,0.0838472,119270.0,119260.0,0.2515524]
[1755003336698,0.0838542,119260.0,119250.0,0.3354418]
[1755003336900,0.67287113,119260.0,119250.0,0.3595118]
[1755003337195,0.2028542,119260.0,119250.0,0.4215718]
[1755003337699,0.2028542,119260.0,119250.0,0.4587918]
[1755003337895,0.2028542,119260.0,119250.0,0.4617918]
[1755003338199,0.119,119260.0,119250.0,0.4617918]
[1755003339000,0.119,119260.0,119250.0,0.4637918]
[1755003339296,0.07149,119260.0,119250.0,0.4637918]
[1755003340099,1.0210472,119270.0,119260.0,0.0838542]
[1755003340400,0.1306872,119270.0,119260.0,0.2072042]
[1755003340699,0.2028472,119270.0,119260.0,0.2072042]
[1755003341311,0.2028472,119270.0,119260.0,0.2082042]
[1755003341606,0.2028472,119270.0,119260.0,0.2092042]
[1755003341806,1.64593193,119280.0,119260.0,0.3769081]
[1755003341807,1.212135,119280.0,119260.0,0.3769081]
[1755003342000,1.3304622,119280.0,119270.0,0.1595772]
[1755003342300,0.322335,119280.0,119270.0,0.2071972]
[1755003342497,0.359345,119280.0,119270.0,0.2071972]
[1755003342695,0.2754995,119280.0,119270.0,0.2071972]
[1755003343200,0.2516395,119280.0,119270.0,0.2071972]
[1755003343406,0.08395,119280.0,119270.0,0.2071972]
[1755003343603,0.0001,119280.0,119270.0,0.2071972]
[1755003343908,0.0011,119280.0,119270.0,0.2071972]
[1755003344703,0.0011,119280.0,119270.0,0.67721413]
[1755003345805,0.0011,119280.0,119270.0,0.2071972]
[1755003346001,0.0011,119280.0,119270.0,0.67721413]
[1755003346403,0.0001,119280.0,119270.0,0.68021413]
[1755003346908,0.0001,119280.0,119270.0,0.2101972]
[1755003347710,0.0001,119280.0,119270.0,0.2121972]
[1755003349204,0.0838191,119310.0,119300.0,0.2514658]
[1755003349399,0.05631,119310.0,119300.0,0.2990858]
[1755003349598,1.56867,119310.0,119300.0,0.3748158]
[1755003350203,1.52183,119310.0,119300.0,0.3748158]
[1755003350407,1.5838191,119310.0,119300.0,0.3748158]
[1755003350603,1.5858191,119310.0,119300.0,0.3748158]
[1755003350803,2.10267603,119310.0,119300.0,0.3748158]
[1755003351112,2.12653603,119310.0,119300.0,0.3748158]
[1755003351411,2.12753603,119310.0,119300.0,0.3748158]
[1755003352017,1.6575191,119310.0,119300.0,0.3748158]
[1755003352712,1.6336591,119310.0,119300.0,0.3748158]
[1755003353306,1.6575191,119310.0,119300.0,0.3748158]
[1755003354010,1.6212991,119310.0,119300.0,0.3748158]
[1755003354407,0.003,119310.0,119300.0,0.3748158]
[1755003354705,0.1706691,119310.0,119300.0,0.3748158]
[1755003354913,3.09627603,119310.0,119300.0,0.2178116]
[1755003355711,3.09627603,119310.0,119300.0,0.2694716]
[1755003356708,1.7058191,119310.0,119300.0,0.2909916]
[1755003356909,0.003,119310.0,119300.0,0.2909916]
[1755003357105,0.003,119310.0,119300.0,0.76100853]
[1755003358218,0.003,119310.0,119300.0,0.76613638]
[1755003359221,0.003,119310.0,119300.0,0.29611945]
[1755003359525,0.003,119310.0,119300.0,0.76613638]
[1755003360219,0.003,119310.0,119300.0,0.29611945]
[1755003360417,0.08685,119310.0,119300.0,0.3632041]
[1755003360811,0.05931,119310.0,119300.0,0.3632041]
[1755003361922,0.003,119310.0,119300.0,0.83322103]
[1755003362322,0.003,119310.0,119300.0,0.3632041]
[1755003362618,0.003,119310.0,119300.0,0.83322103]
[1755003362822,0.05734,119310.0,119300.0,0.3632041]
[1755003364521,0.05734,119310.0,119300.0,0.83322103]
[1755003364721,0.05734,119310.0,119300.0,0.3632041]
[1755003366024,0.03548,119310.0,119300.0,0.3632041]
[1755003366323,0.003,119310.0,119300.0,0.3632041]
[1755003366624,0.003,119310.0,119300.0,0.76396716]
[1755003367124,0.0868188,119310.0,119300.0,1.68144716]
[1755003367320,0.0868188,119310.0,119300.0,1.2806841]
[1755003367625,0.0868188,119310.0,119300.0,1.68144716]
[1755003368022,0.0868188,119310.0,119300.0,0.2398541]
[1755003368223,0.2028388,119310.0,119300.0,0.12615785]
[1755003368423,0.60360186,119310.0,119300.0,0.20998375]
[1755003368621,0.2028388,119310.0,119300.0,0.20998375]
[1755003368822,0.60360186,119310.0,119300.0,0.20998375]
[1755003371019,0.70360186,119310.0,119300.0,0.0498]
[1755003371225,0.0838254,119300.0,119290.0,0.04843]
[1755003371427,0.60060846,119300.0,119290.0,0.2048625]
[1755003371625,0.0838508,119270.0,119260.0,0.2682538]
[1755003371824,0.0838435,119280.0,119270.0,0.0838465]
[1755003372030,0.1381835,119280.0,119270.0,0.20153882]
[1755003372226,0.1381835,119280.0,119270.0,0.27266882]
[1755003372425,0.0838435,119280.0,119270.0,0.67343188]
[1755003372620,0.0838435,119280.0,119270.0,0.27266882]
[1755003373226,0.0838435,119280.0,119270.0,0.27466882]
[1755003373429,0.1163235,119280.0,119270.0,0.27466882]
[1755003373925,0.66977001,119280.0,119270.0,0.2068765]
[1755003374125,0.66977001,119280.0,119270.0,0.21249426]
[1755003374327,0.1998635,119280.0,119270.0,0.21249426]
[1755003374527,1.6998635,119280.0,119270.0,0.21249426]
[1755003374929,1.6760835,119280.0,119270.0,0.21249426]
[1755003375123,1.6760835,119280.0,119270.0,0.21549426]
[1755003377733,1.6998635,119280.0,119270.0,0.21549426]
[1755003378836,1.61602,119280.0,119270.0,1.13101426]
[1755003379138,1.6998595,119280.0,119270.0,1.13101426]
[1755003379727,1.6643095,119280.0,119270.0,1.13101426]
[1755003380239,1.6998595,119280.0,119270.0,1.13101426]
[1755003381941,1.5,119280.0,119270.0,1.60092077]
[1755003382242,0.2356878,119300.0,119280.0,0.3353535]
[1755003382444,1.24975,119300.0,119290.0,0.2048625]
[1755003382638,1.83503,119300.0,119290.0,0.2048625]
[1755003382942,1.83503,119300.0,119290.0,0.1336325]
[1755003383135,2.33741651,119300.0,119290.0,0.1336325]
[1755003383335,2.33741651,119300.0,119290.0,0.1065325]
[1755003383933,1.86751,119300.0,119290.0,0.1065325]
[1755003384140,2.33741651,119300.0,119290.0,0.1065325]
[1755003384737,0.0838325,119290.0,119280.0,0.251514]
[1755003385043,0.1998525,119290.0,119280.0,0.290914]
[1755003385238,0.1998525,119290.0,119280.0,0.349744]
[1755003386040,0.1998525,119290.0,119280.0,0.351744]
[1755003386337,0.0838325,119290.0,119280.0,0.351744]
[1755003386538,0.1998525,119290.0,119280.0,0.374544]
[1755003386936,0.1760725,119290.0,119280.0,0.374544]
[1755003387137,0.1998525,119290.0,119280.0,0.374544]
[1755003388838,0.11602,119290.0,119280.0,0.374544]
[1755003389040,0.08047,119290.0,119280.0,0.374544]
[1755003389343,0.1539125,119290.0,119280.0,0.374544]
[1755003389543,0.1656825,119290.0,119280.0,0.374544]
[1755003389748,3.21814871,119300.0,119290.0,0.0838325]
[1755003389945,3.25369871,119300.0,119290.0,0.1337325]
[1755003390246,3.25369871,119300.0,119290.0,0.2048625]
[1755003390433,3.28617871,119300.0,119290.0,0.2048625]
[1755003390637,2.37325871,119300.0,119290.0,0.2048625]
[1755003391044,1.9033522,119300.0,119290.0,0.2048625]
[1755003391245,2.37325871,119300.0,119290.0,0.2048625]
[1755003391543,1.7356878,119300.0,119290.0,0.1564325]
[1755003391746,1.6518584,119300.0,119290.0,0.2048625]
[1755003392139,1.53348,119300.0,119290.0,0.2048625]
[1755003392339,1.56911,119300.0,119290.0,0.2048625]
[1755003392838,1.56911,119300.0,119290.0,0.60674892]
[1755003393145,1.56811,119300.0,119290.0,0.2068625]
[1755003393937,1.6519355,119300.0,119290.0,0.2068625]
[1755003396734,1.56811,119300.0,119290.0,0.2068625]
[1755003398143,0.04366,119300.0,119290.0,0.60774892]
[1755003398341,0.08095,119300.0,119290.0,0.60774892]
[1755003398541,0.60098212,119300.0,119290.0,0.1129325]
[1755003398845,1.1108957,119300.0,119290.0,0.0858325]
[1755003399246,1.51178212,119300.0,119290.0,0.0858325]
[1755003399549,1.51178212,119300.0,119290.0,0.0858327]
[1755003399743,1.62178212,119300.0,119290.0,0.002]
[1755003399946,1.61178212,119300.0,119290.0,0.002]
[1755003400444,1.51178212,119300.0,119290.0,0.002]
[1755003400651,1.60178212,119300.0,119290.0,0.002]
[1755003401145,1.62178212,119300.0,119290.0,0.002]
[1755003401346,1.60178212,119300.0,119290.0,0.002]
[1755003401750,1.51178212,119300.0,119290.0,0.0858327]
[1755003404548,0.60098212,119300.0,119290.0,0.2078227]
[1755003405149,0.60098212,119300.0,119290.0,0.1737427]
[1755003405449,0.60098212,119300.0,119290.0,0.1209227]
[1755003405743,0.69098212,119300.0,119290.0,0.0858327]
[1755003405959,0.71098212,119300.0,119290.0,0.0858327]
[1755003406448,0.70098212,119300.0,119290.0,0.0858327]
[1755003406652,0.71098212,119300.0,119290.0,0.0858327]
[1755003407045,0.60098212,119300.0,119290.0,0.0858327]
[1755003411845,0.2000957,119300.0,119290.0,0.0858327]
[1755003412051,0.60098212,119300.0,119290.0,0.0858327]
[1755003413254,0.2002257,119300.0,119290.0,0.0858327]
[1755003413459,0.60111212,119300.0,119290.0,0.0858327]
[1755003413663,0.60111212,119300.0,119290.0,0.1100327]
[1755003413856,0.60111212,119300.0,119290.0,0.0858327]
[1755003418556,0.60111212,119300.0,119290.0,0.002]
[1755003419253,0.60111212,119300.0,119290.0,0.0858326]
[1755003419763,0.60111212,119300.0,119290.0,0.002]
[1755003420059,0.60111212,119300.0,119290.0,0.0858326]
[1755003420458,0.60111212,119300.0,119290.0,0.002]
[1755003421360,0.0838537,119260.0,119250.0,0.2515773]
[1755003421556,0.60114012,119260.0,119250.0,0.1735335]
[1755003421757,0.60114012,119260.0,119250.0,0.2614435]
[1755003421957,0.60114012,119260.0,119250.0,0.2955235]
[1755003422458,0.09195,119260.0,119250.0,0.2995235]
[1755003422665,0.1758037,119260.0,119250.0,0.70040992]
[1755003422861,0.235078,119280.0,119260.0,0.2515564]
[1755003423062,0.3566736,119280.0,119270.0,0.60637312]
[1755003423260,0.3672136,119280.0,119270.0,0.2054867]
[1755003424167,0.2514906,119300.0,119290.0,0.0838326]
[1755003424360,0.2514906,119300.0,119280.0,0.2515036]
[1755003424361,0.0838397,119280.0,119270.0,0.0878467]
[1755003424660,0.0838537,119260.0,119250.0,0.1707149]
[1755003424861,0.60042012,119260.0,119250.0,0.0868573]
[1755003425072,0.60042012,119260.0,119250.0,0.1098873]
[1755003425269,0.0838678,119240.0,119230.0,0.1907741]
[1755003425471,0.0838748,119230.0,119220.0,0.2412101]
[1755003425669,0.0838819,119220.0,119210.0,0.17134315]
[1755003425871,0.0838889,119210.0,119200.0,0.28262905]
[1755003426168,0.60045532,119210.0,119200.0,0.2055359]
[1755003426367,0.60045532,119210.0,119200.0,0.21120255]
[1755003426568,0.60045532,119210.0,119200.0,0.1551159]
[1755003426773,0.60045532,119210.0,119200.0,0.1334759]
[1755003426970,0.1995689,119210.0,119200.0,0.2055359]
[1755003427176,0.0816,119210.0,119200.0,0.2125359]
[1755003427471,0.02242,119210.0,119200.0,0.61542232]
[1755003427674,1.47300202,119230.0,119220.0,0.0838819]
[1755003427675,1.3071494,119230.0,119220.0,0.0838819]
[1755003427872,0.1171848,119230.0,119220.0,0.60640832]
[1755003428073,0.30282146,119240.0,119220.0,0.3732814]
[1755003428376,0.48539978,119240.0,119230.0,0.1573248]
[1755003428571,0.61755758,119240.0,119230.0,0.2055148]
[1755003428878,0.21667116,119240.0,119230.0,0.1681248]
[1755003429065,0.0838748,119230.0,119220.0,0.02303]
[1755003429265,0.0838818,119220.0,119210.0,0.1908019]
[1755003429473,0.0838889,119210.0,119200.0,0.2536782]
[1755003429780,0.62160432,119210.0,119200.0,0.2777082]
[1755003429980,0.1512789,119210.0,119200.0,0.2777082]
[1755003430166,0.1512789,119210.0,119200.0,0.3251282]
[1755003430167,0.1278189,119210.0,119200.0,0.3251282]
[1755003430370,0.03331,119210.0,119200.0,0.3251282]
[1755003430573,0.1171989,119210.0,119200.0,0.3251282]
[1755003431182,0.0838889,119210.0,119200.0,0.3271282]
[1755003431669,0.1171989,119210.0,119200.0,0.3271282]
[1755003431872,0.1278189,119210.0,119200.0,0.3271282]
[1755003432474,0.1512789,119210.0,119200.0,0.3271282]
[1755003432978,0.0838889,119210.0,119200.0,0.3271282]
[1755003433184,0.0838889,119210.0,119200.0,0.3301282]
[1755003433480,0.1278189,119210.0,119200.0,0.3301282]
[1755003434678,0.0838889,119210.0,119200.0,0.3301282]
[1755003436279,0.0838889,119210.0,119200.0,0.3783182]
[1755003436680,0.2849681,119220.0,119210.0,0.0838889]
[1755003436880,0.2849681,119220.0,119210.0,0.2055289]
[1755003437174,0.3333381,119220.0,119210.0,0.2055289]
[1755003437381,0.3673381,119220.0,119210.0,0.2055289]
[1755003438183,0.3673381,119220.0,119210.0,0.2065289]
[1755003438582,0.2740781,119220.0,119210.0,0.2065289]
[1755003438783,0.2516581,119220.0,119210.0,0.2085289]
[1755003438978,0.2849681,119220.0,119210.0,0.2085289]
[1755003439180,0.1396118,119220.0,119210.0,0.2085289]
[1755003439377,1.08674346,119240.0,119220.0,0.1677532]